Workbook

Sheet Mapping
B2: Welcome to "Create Your Own Overall Similarities (OS) Perceptual Map"
B3: Follow the Steps in Yellow | Z3: =IF(D$18<>"",D$18,"") -> Coke | AA3: =IF(D19<>"",D19,"") -> Pepsi | AB3: =IF(Z3<>"",1,0) -> 1 | AC3: =IF(AA3<>"",1,0) -> 1 | AD3: =+AC3+AB3 -> 2 | AE3: =IF(D$20<>"",D$20,"") -> Sprite | AF3: =IF(D22<>"",D22,"") -> Pepsi Max | AG3: =IF(AE3<>"",1,0) -> 1 | AH3: =IF(AF3<>"",1,0) -> 1 | AI3: =+AH3+AG3 -> 2 | AJ3: =IF(D$22<>"",D$22,"") -> Pepsi Max | AK3: =IF(D29<>"",D29,"") ->  | AL3: =IF(AJ3<>"",1,0) -> 1 | AM3: =IF(AK3<>"",1,0) -> 0 | AN3: =+AM3+AL3 -> 1
B4: Please note that there is a YouTube video available on How to Use this Template | Z4: Coke | AA4: Sprite | AB4: =IF(Z4<>"",1,0) -> 1 | AC4: =IF(AA4<>"",1,0) -> 1 | AD4: =+AC4+AB4 -> 2 | AE4: Sprite | AF4: PM2 | AG4: =IF(AE4<>"",1,0) -> 1 | AH4: =IF(AF4<>"",1,0) -> 1 | AI4: =+AH4+AG4 -> 2 | AJ4: =IF(D$23<>"",D$23,"") -> PM2 | AK4: =IF(D24<>"",D24,"") ->  | AL4: =IF(AJ4<>"",1,0) -> 1 | AM4: =IF(AK4<>"",1,0) -> 0 | AN4: =+AM4+AL4 -> 1
B5: Only enter data/information in the Blue cells | Z5: Coke | AA5: Diet Coke | AB5: 1 | AC5: 1 | AD5: 2 | AE5: Sprite | AG5: 1 | AH5: 0 | AI5: 1 | AJ5: PM2 | AL5: 1 | AM5: 0 | AN5: 1
B6: The Grey cells provide additional information | Z6: Coke | AA6: Pepsi Max | AB6: 1 | AC6: 1 | AD6: 2 | AE6: Sprite | AG6: 1 | AH6: 0 | AI6: 1 | AJ6: PM2 | AL6: 1 | AM6: 0 | AN6: 1
C7: For more information on Perceptual Maps visit: | G7: www.perceptualmaps.com | K7: Or email: geoff@perceptualmaps.com | Z7: Coke | AA7: PM2 | AB7: 1 | AC7: 1 | AD7: 2 | AE7: Sprite | AG7: 1 | AH7: 0 | AI7: 1 | AJ7: PM2 | AL7: 1 | AM7: 0 | AN7: 1
Z8: Coke | AB8: 1 | AC8: 0 | AD8: 1 | AE8: Sprite | AG8: 1 | AH8: 0 | AI8: 1 | AJ8: PM2 | AL8: 1 | AM8: 0 | AN8: 1
Z9: Coke | AB9: 1 | AC9: 0 | AD9: 1 | AE9: Sprite | AG9: 1 | AH9: 0 | AI9: 1 | AJ9: PM2 | AL9: 1 | AM9: 0 | AN9: 1
B10: STEP ONE | C10: Enter the Title of Your Map | E10: Soft Drink Year 1 | Z10: Coke | AB10: 1 | AC10: 0 | AD10: 1 | AE10: Sprite | AG10: 1 | AH10: 0 | AI10: 1 | AJ10: =IF(D$24<>"",D$24,"") ->  | AK10: =IF(D25<>"",D25,"") ->  | AL10: 0 | AM10: 0 | AN10: 0
E11: (This is an example only. Simply type over this map title.) | Z11: Coke | AB11: 1 | AC11: 0 | AD11: 1 | AE11: =IF(D$21<>"",D$21,"") -> Diet Coke | AF11: =IF(D22<>"",D22,"") -> Pepsi Max | AG11: 1 | AH11: 1 | AI11: 2 | AJ11: =IF(D$24<>"",D$24,"") ->  | AK11: =IF(D26<>"",D26,"") ->  | AL11: 0 | AM11: 0 | AN11: 0
Z12: Coke | AB12: 1 | AC12: 0 | AD12: 1 | AE12: Diet Coke | AF12: PM2 | AG12: 1 | AH12: 1 | AI12: 2 | AJ12: =IF(D$24<>"",D$24,"") ->  | AK12: =IF(D27<>"",D27,"") ->  | AL12: 0 | AM12: 0 | AN12: 0
Z13: Coke | AB13: 1 | AC13: 0 | AD13: 1 | AE13: Diet Coke | AG13: 1 | AH13: 0 | AI13: 1 | AJ13: =IF(D$24<>"",D$24,"") ->  | AK13: =IF(D28<>"",D28,"") ->  | AL13: 0 | AM13: 0 | AN13: 0
Z14: =IF(D$19<>"",D$19,"") -> Pepsi | AA14: =IF(D20<>"",D20,"") -> Sprite | AB14: 1 | AC14: 1 | AD14: 2 | AE14: Diet Coke | AG14: 1 | AH14: 0 | AI14: 1 | AJ14: =IF(D$24<>"",D$24,"") ->  | AK14: =IF(D29<>"",D29,"") ->  | AL14: 0 | AM14: 0 | AN14: 0
B15: STEP TWO | C15: Enter Brands Below | E15: STEP THREE ==> | G15: Compare EACH pair of brands below Note: If you have less than 12 brands some blanks cells will appear - only enter the data for the pairs | Z15: Pepsi | AA15: Diet Coke | AB15: 1 | AC15: 1 | AD15: 2 | AE15: Diet Coke | AG15: 1 | AH15: 0 | AI15: 1 | AJ15: =IF(D$25<>"",D$25,"") ->  | AK15: =IF(D26<>"",D26,"") ->  | AL15: 0 | AM15: 0 | AN15: 0
C16: You may enter up to 12 brands | F16: Compare using a 1-9 scale, where 1= Virtually the Same and 9 = Virtually Opposites | Z16: Pepsi | AA16: Pepsi Max | AB16: 1 | AC16: 1 | AD16: 2 | AE16: Diet Coke | AG16: 1 | AH16: 0 | AI16: 1 | AJ16: =IF(D$25<>"",D$25,"") ->  | AK16: =IF(D27<>"",D27,"") ->  | AL16: 0 | AM16: 0 | AN16: 0
C17: Some examples provided, simply type over the top to enter your own brands | F17: Please note that the brand pair sets below should update automatically when you enter the brands in Step Two (left). If not, press F9 at the top of your keyboard to recalculate the spreadsheet. | Z17: Pepsi | AA17: PM2 | AB17: 1 | AC17: 1 | AD17: 2 | AE17: Diet Coke | AG17: 1 | AH17: 0 | AI17: 1 | AJ17: =IF(D$25<>"",D$25,"") ->  | AK17: =IF(D28<>"",D28,"") ->  | AL17: 0 | AM17: 0 | AN17: 0
C18: 1 | D18: Coke | F18: =IF(AD3=2,Z3,"") -> Coke | G18: =IF(AD3=2,AA3,"") -> Pepsi | H18: 1 | I18: =IF(AI3=2,AE3,"") -> Sprite | J18: =IF(AI3=2,AF3,"") -> Pepsi Max | K18: 6 | L18: =IF(AN3=2,AJ3,"") ->  | M18: =IF(AN3=2,AK3,"") ->  | Z18: Pepsi | AB18: 1 | AC18: 0 | AD18: 1 | AE18: Diet Coke | AG18: 1 | AH18: 0 | AI18: 1 | AJ18: =IF(D$25<>"",D$25,"") ->  | AK18: =IF(D29<>"",D29,"") ->  | AL18: 0 | AM18: 0 | AN18: 0
C19: 2 | D19: Pepsi | F19: =IF(AD4=2,Z4,"") -> Coke | G19: =IF(AD4=2,AA4,"") -> Sprite | H19: 9 | I19: =IF(AI4=2,AE4,"") -> Sprite | J19: =IF(AI4=2,AF4,"") -> PM2 | K19: 6 | L19: =IF(AN4=2,AJ4,"") ->  | M19: =IF(AN4=2,AK4,"") ->  | Z19: Pepsi | AB19: 1 | AC19: 0 | AD19: 1 | AE19: =IF(D$22<>"",D$22,"") -> Pepsi Max | AF19: =IF(D23<>"",D23,"") -> PM2 | AG19: 1 | AH19: 1 | AI19: 2 | AJ19: =IF(D$26<>"",D$26,"") ->  | AK19: =IF(D27<>"",D27,"") ->  | AL19: 0 | AM19: 0 | AN19: 0
C20: 3 | D20: Sprite | F20: Coke | G20: Diet Coke | H20: 3 | Z20: Pepsi | AB20: 1 | AC20: 0 | AD20: 1 | AE20: Pepsi Max | AG20: 1 | AH20: 0 | AI20: 1 | AJ20: =IF(D$26<>"",D$26,"") ->  | AK20: =IF(D28<>"",D28,"") ->  | AL20: 0 | AM20: 0 | AN20: 0
C21: 4 | D21: Diet Coke | F21: Coke | G21: Pepsi Max | H21: 4 | Z21: Pepsi | AB21: 1 | AC21: 0 | AD21: 1 | AE21: Pepsi Max | AG21: 1 | AH21: 0 | AI21: 1 | AJ21: =IF(D$26<>"",D$26,"") ->  | AK21: =IF(D29<>"",D29,"") ->  | AL21: 0 | AM21: 0 | AN21: 0
C22: 5 | D22: Pepsi Max | F22: Coke | G22: PM2 | H22: 4 | Z22: Pepsi | AB22: 1 | AC22: 0 | AD22: 1 | AE22: Pepsi Max | AG22: 1 | AH22: 0 | AI22: 1 | AJ22: =IF(D$27<>"",D$27,"") ->  | AK22: =IF(D28<>"",D28,"") ->  | AL22: 0 | AM22: 0 | AN22: 0
C23: 6 | D23: PM2 | Z23: Pepsi | AB23: 1 | AC23: 0 | AD23: 1 | AE23: Pepsi Max | AG23: 1 | AH23: 0 | AI23: 1 | AJ23: =IF(D$27<>"",D$27,"") ->  | AK23: =IF(D29<>"",D29,"") ->  | AL23: 0 | AM23: 0 | AN23: 0
C24: 7 | Z24: =IF(D$20<>"",D$20,"") -> Sprite | AA24: =IF(D21<>"",D21,"") -> Diet Coke | AB24: 1 | AC24: 1 | AD24: 2 | AE24: Pepsi Max | AG24: 1 | AH24: 0 | AI24: 1 | AJ24: =IF(D$28<>"",D$28,"") ->  | AK24: =IF(D29<>"",D29,"") ->  | AL24: 0 | AM24: 0 | AN24: 0
C25: 8
C26: 9 | I26: Diet Coke | J26: Pepsi Max | K26: 1.25
C27: 10 | I27: Diet Coke | J27: PM2 | K27: 1.3
C28: 11
C29: 12 | F29: Pepsi | G29: Sprite | H29: 7
C30: Compare using a 1-9 scale | F30: Pepsi | G30: Diet Coke | H30: 5
C31: 1 = Virtually the same | F31: Pepsi | G31: Pepsi Max | H31: 2.5
C32: 2 = Quite similar | F32: Pepsi | G32: PM2 | H32: 2.5
C33: 3 = Reasonably similar
C34: 4 = Somewhat similar | I34: Pepsi Max | J34: PM2 | K34: 1
C35: 5 = Neither (or unsure)
C36: 6 = Somewhat dissimilar
C37: 7 = Reasonably dissimilar
C38: 8 = Quite dissimilar
C39: 9 = Virtually opposites | F39: Sprite | G39: Diet Coke | H39: 5
F44: Important Note for Apple Mac users
D45: STEP FOUR | E45: Ensure that your spreadsheet has the 'Solver add-in' loaded
E46: In the top menu of Excel click "File" then select "Options" and then select "Add-Ins"
E47: Then click 'Go' next to 'Manage Excel Add-ins' and select the 'Solver Add-in' (as shown below)
B48: STEP FIVE | D48: Follow the sequence as shown | E48: Please note that these options are standard with every version of Excel, including the student version | O48: ATTENTION APPLE MAC USERS!!!
O49: Do not follow the instructions in Step Four
O50: Instead, select 'Tools', then 'Add-ins' and then 'Solver'
O51: You will also need to follow Step Six below | AT51: Calculating your perceptual map. This may take several minutes.
H61: Part C: Select Go
D62: Part A: Select Options | K62: Part D: Tick Solver Add-in | AI62: =+AH63 -> Coke | AJ62: =+AH64 -> Pepsi | AK62: =+AH65 -> Sprite | AL62: =+AH66 -> Diet Coke | AM62: =+AH67 -> Pepsi Max | AN62: =+AH68 -> PM2 | AO62: =+AH69 ->  | AP62: =+AH70 ->  | AQ62: =+AH71 ->  | AR62: =+AH72 ->  | AS62: =+AH73 ->  | AT62: =+AH74 ->  | AY62: =+AI62 -> Coke | AZ62: =+AJ62 -> Pepsi | BA62: Sprite | BB62: Diet Coke | BC62: Pepsi Max | BD62: PM2 | BE62: =+AO62 ->  | BF62: =+AP62 ->  | BG62: =+AQ62 ->  | BH62: =+AR62 ->  | BI62: =+AS62 ->  | BJ62: =+AT62 -> 
E63: Part B: Select Add-ins | AD63: 3 | AE63: 3 | AG63: 1 | AH63: =IF(D18="","",+D18) -> Coke | AI63: 0 | AX63: =+AH63 -> Coke | AY63: =IFERROR((AI63-AI90)^2,"") -> 0 | AZ63: =IFERROR((AJ63-AJ90)^2,"") -> 0 | BA63: 0 | BB63: 0 | BC63: 0 | BD63: 0 | BE63: 0 | BF63: 0 | BG63: 0 | BH63: 0 | BI63: 0 | BJ63: 0
AD64: =IF($AI64="",0,+$AI64) -> 1 | AE64: =IF($AI64="",0,0) -> 0 | AG64: =+AG63+1 -> 2 | AH64: Pepsi | AI64: =+H18 -> 1 | AJ64: 0 | AX64: =+AH64 -> Pepsi | AY64: =IFERROR((AI64-AI91)^2,"") -> 0.8906602219 | AZ64: 0 | BA64: 0 | BB64: 0 | BC64: 0 | BD64: 0 | BE64: 0 | BF64: 0 | BG64: 0 | BH64: 0 | BI64: 0 | BJ64: 0
AD65: =IF($AI65="",0,0) -> 0 | AE65: =IF($AI65="",0,+$AI65) -> 9 | AG65: =+AG64+1 -> 3 | AH65: Sprite | AI65: =+H19 -> 9 | AJ65: =+H29 -> 7 | AK65: 0 | AX65: Sprite | AY65: 7.663248129 | AZ65: 3.168475826 | BA65: 0 | BB65: 0 | BC65: 0 | BD65: 0 | BE65: 0 | BF65: 0 | BG65: 0 | BH65: 0 | BI65: 0 | BJ65: 0
AD66: =IF($AI66="",0,+$AI66) -> 3 | AE66: =IF($AI66="",0,0) -> 0 | AG66: 4 | AH66: Diet Coke | AI66: 3 | AJ66: =+H30 -> 5 | AK66: =+H39 -> 5 | AL66: 0 | AX66: Diet Coke | AY66: 0.07088549823 | AZ66: 3.658183908 | BA66: 2.195210445 | BB66: 0 | BC66: 0 | BD66: 0 | BE66: 0 | BF66: 0 | BG66: 0 | BH66: 0 | BI66: 0 | BJ66: 0
AD67: =IF($AI67="",0,0) -> 0 | AE67: =IF($AI67="",0,+$AI67) -> 4 | AG67: 5 | AH67: Pepsi Max | AI67: 4 | AJ67: 2.5 | AK67: =+K18 -> 6 | AL67: =+K26 -> 1.25 | AM67: 0 | AX67: Pepsi Max | AY67: 2.683953152 | AZ67: 0.02656311528 | BA67: 2.155734179 | BB67: 1.209933311 | BC67: 0 | BD67: 0 | BE67: 0 | BF67: 0 | BG67: 0 | BH67: 0 | BI67: 0 | BJ67: 0
AD68: =IF($AI68="",0,+$AI68) -> 4 | AE68: =IF($AI68="",0,0) -> 0 | AG68: 6 | AH68: PM2 | AI68: 4 | AJ68: 2.5 | AK68: =+K19 -> 6 | AL68: =+K27 -> 1.3 | AM68: =+K34 -> 1 | AN68: 0 | AX68: PM2 | AY68: 2.787655897 | AZ68: 0.0373266712 | BA68: 2.152752728 | BB68: 1.308934278 | BC68: 0.9997873742 | BD68: 0 | BE68: 0 | BF68: 0 | BG68: 0 | BH68: 0 | BI68: 0 | BJ68: 0
D69: STEP FIVE | E69: IMPORTANT: Save the spreadsheet and exit Excel, then reopen the spreadsheet | AD69: =IF($AI69="",0,0) -> 0 | AE69: =IF($AI69="",0,+$AI69) -> 0 | AG69: 7 | AI69: 0 | AJ69: 0 | AK69: 0 | AL69: 0 | AM69: =+K35 -> 0 | AN69: =+N19 -> 0 | AO69: 0 | AY69: 2.006719954 | AZ69: 1.188397241 | BA69: 4.530599506 | BB69: 0.7080381277 | BC69: 0.6890605644 | BD69: 0.6726450952 | BE69: 0 | BF69: 0 | BG69: 0 | BH69: 0 | BI69: 0 | BJ69: 0
E70: Note: You need to save, exit and reopen Excel in order for the Solver Add-in to be loaded into the spreadsheet | AD70: =IF($AI70="",0,+$AI70) -> 0 | AE70: =IF($AI70="",0,0) -> 0 | AG70: 8 | AI70: 0 | AJ70: 0 | AK70: 0 | AL70: 0 | AM70: 0 | AN70: =+N20 -> 0 | AO70: =+N25 -> 0 | AP70: 0 | AY70: 2.023988581 | AZ70: 1.201709747 | BA70: 4.524808885 | BB70: 0.697967178 | BC70: 0.6815307405 | BD70: 0.6653195908 | BE70: 1.469460555e-10 | BF70: 0 | BG70: 0 | BH70: 0 | BI70: 0 | BJ70: 0
E71: Solver should then appear under Data in the top menu, as shown below | AD71: =IF($AI71="",0,0) -> 0 | AE71: =IF($AI71="",0,+$AI71) -> 0 | AG71: 9 | AI71: 0 | AJ71: 0 | AK71: 0 | AL71: 0 | AM71: 0 | AN71: 0 | AO71: =+N26 -> 0 | AP71: =+N30 -> 0 | AQ71: 0 | AY71: 2.020244849 | AZ71: 1.200612978 | BA71: 4.544585368 | BB71: 0.6938116157 | BC71: 0.6761589763 | BD71: 0.6600259081 | BE71: 4.659591267e-10 | BF71: 1.329027408e-11 | BG71: 0 | BH71: 0 | BI71: 0 | BJ71: 0
AD72: =IF($AI72="",0,+$AI72) -> 0 | AE72: =IF($AI72="",0,0) -> 0 | AG72: 10 | AI72: 0 | AJ72: 0 | AK72: 0 | AL72: 0 | AM72: 0 | AN72: 0 | AO72: 0 | AP72: =+N31 -> 0 | AQ72: =+N34 -> 0 | AR72: 0 | AY72: 2.025233896 | AZ72: 1.199819885 | BA72: 4.495087504 | BB72: 0.707402581 | BC72: 0.6922233666 | BD72: 0.6758312191 | BE72: 7.899828657e-11 | BF72: 1.609074055e-10 | BG72: 8.719184726e-10 | BH72: 0 | BI72: 0 | BJ72: 0
AD73: =IF($AI73="",0,0) -> 0 | AE73: =IF($AI73="",0,+$AI73) -> 0 | AG73: 11 | AI73: 0 | AJ73: 0 | AK73: 0 | AL73: 0 | AM73: 0 | AN73: 0 | AO73: 0 | AP73: 0 | AQ73: =+N35 -> 0 | AR73: =+N37 -> 0 | AS73: 0 | AY73: 2.022682077 | AZ73: 1.200951116 | BA73: 4.52781439 | BB73: 0.6978407666 | BC73: 0.6811203743 | BD73: 0.6649108958 | BE73: 1.414452735e-10 | BF73: 3.447187783e-15 | BG73: 8.723514279e-12 | BH73: 1.920666058e-10 | BI73: 0 | BJ73: 0
AD74: =IF($AI74="",0,+$AI74) -> 0 | AE74: =IF($AI74="",0,0) -> 0 | AG74: 12 | AI74: 0 | AJ74: 0 | AK74: 0 | AL74: 0 | AM74: =+N18 -> 0 | AN74: 0 | AO74: 0 | AP74: 0 | AQ74: 0 | AR74: =+N38 -> 0 | AS74: =+N39 -> 0 | AT74: 0 | AY74: 2.035624225 | AZ74: 1.211016312 | BA74: 4.524362735 | BB74: 0.6901499654 | BC74: 0.6752727526 | BD74: 0.6592193984 | BE74: 1.391484674e-09 | BF74: 4.831504859e-11 | BG74: 2.652374195e-11 | BH74: 1.109553172e-09 | BI74: 5.008368859e-11 | BJ74: 0
AX76: Reduce | AY76: =SQRT(SUM(AY63:BJ74)) -> 9.475341319
AX77: to one
D79: STEP SIX
E84: Note: It may take up to 15 seconds to calculate
AI87: =SUM(AI63:AI86) -> 21 | AJ87: =SUM(AJ63:AJ86) -> 17 | AK87: 17 | AL87: 2.55 | AM87: 1 | AN87: 0 | AO87: 0 | AP87: 0 | AQ87: 0 | AR87: 0 | AS87: 0
Z89: Final points | AK89: =+AF90 -> 1 | AL89: =+AF91 -> 1 | AM89: =+AF92 -> 1 | AN89: =+AF93 -> 1 | AO89: =+AF94 -> 1 | AP89: =+AF95 -> 1 | AQ89: =+AF96 -> 0 | AR89: =+AF97 -> 0 | AS89: =+AF98 -> 0 | AT89: =+AF99 -> 0 | AU89: =+AF100 -> 0 | AV89: =+AF101 -> 0
Z90: =+IF($AF90=1,(AC90+$AD$117)*$AD$119,"") -> 2.095790429 | AA90: =+IF($AF90=1,(AD90+$AD$117)*$AD$119,"") -> 5.480021118 | AC90: 3.003772403 | AD90: 4.618547736 | AF90: =IF(D18="",0,1) -> 1 | AH90: =+AH63 -> Coke | AI90: =IFERROR(SUMXMY2(AC$90:AD$90,AC90:AD90),"") -> 0
Z91: =+IF($AF91=1,(AC91+$AD$117)*$AD$119,"") -> 2.385280518 | AA91: =+IF($AF91=1,(AD91+$AD$117)*$AD$119,"") -> 5.884092166 | AC91: 3.141901714 | AD91: 4.811349002 | AF91: =IF(D19="",0,1) -> 1 | AH91: =+AH64 -> Pepsi | AI91: =IFERROR(SUMXMY2(AC$90:AD$90,AC91:AD91),"") -> 0.05625203474 | AJ91: =IFERROR(SUMXMY2(AC$91:AD$91,AC91:AD91),"") -> 0
Z92: 6.68072489 | AA92: 8 | AC92: 5.191459872 | AD92: 5.82094796 | AF92: 1 | AH92: Sprite | AI92: 6.231742763 | AJ92: =IFERROR(SUMXMY2(AC$91:AD$91,AC92:AD92),"") -> 5.219978701 | AK92: =IFERROR(SUMXMY2(AC$92:AD$92,AC92:AD92),"") -> 0
Z93: 5.661767774 | AA93: 4.203209226 | AC93: 4.705267598 | AD93: 4.009320843 | AF93: 1 | AH93: Diet Coke | AI93: 3.266243306 | AJ93: 3.087362055 | AK93: =IFERROR(SUMXMY2(AC$92:AD$92,AC93:AD93),"") -> 3.518375741 | AL93: =IFERROR(SUMXMY2(AC$93:AD$93,AC93:AD93),"") -> 0
Z94: 4.906109674 | AA94: 3.90662094 | AC94: 4.344707644 | AD94: 3.867804649 | AF94: 1 | AH94: Pepsi Max | AI94: 2.361722505 | AJ94: 2.337018052 | AK94: 4.531758133 | AL94: =IFERROR(SUMXMY2(AC$93:AD$93,AC94:AD94),"") -> 0.1500303137 | AM94: =IFERROR(SUMXMY2(AC$94:AD$94,AC94:AD94),"") -> 0
Z95: 4.886109055 | AA95: 3.91480399 | AC95: 4.33516441 | AD95: 3.871709166 | AF95: 1 | AH95: PM2 | AI95: 2.330372527 | AJ95: 2.306798884 | AK95: 4.532773798 | AL95: 0.1559133434 | AM95: =IFERROR(SUMXMY2(AC$94:AD$94,AC95:AD95),"") -> 0.000106318567 | AN95: =IFERROR(SUMXMY2(AC$95:AD$95,AC95:AD95),"") -> 0
AC96: 4.184958906 | AD96: 4.764786845 | AF96: 0 | AI96: 1.416587432 | AJ96: 1.09013634 | AK96: 2.128520497 | AL96: 0.841450015 | AM96: 0.8300967199 | AN96: =IFERROR(SUMXMY2(AC$95:AD$95,AC96:AD96),"") -> 0.8201494347 | AO96: =IFERROR(SUMXMY2(AC$96:AD$96,AC96:AD96),"") -> 0
M97: STEP SEVEN | O97: Copy Your Map to Word or PP | AC97: 4.187780828 | AD97: 4.76274751 | AF97: 0 | AI97: 1.422669526 | AJ97: 1.096225227 | AK97: 2.127159816 | AL97: 0.8354442997 | AM97: 0.8255487511 | AN97: 0.8156712517 | AO97: =IFERROR(SUMXMY2(AC$96:AD$96,AC97:AD97),"") -> 1.212213081e-05 | AP97: =IFERROR(SUMXMY2(AC$97:AD$97,AC97:AD97),"") -> 0
M98: To maintain the formatting of the map | AC98: 4.187452475 | AD98: 4.760866615 | AF98: 0 | AI98: 1.421353175 | AJ98: 1.095724864 | AK98: 2.131803314 | AL98: 0.8329535495 | AM98: 0.8222888643 | AN98: 0.8124197857 | AO98: 2.158608641e-05 | AP98: =IFERROR(SUMXMY2(AC$97:AD$97,AC98:AD98),"") -> 3.645582818e-06 | AQ98: =IFERROR(SUMXMY2(AC$98:AD$98,AC98:AD98),"") -> 0
M99: when you copy it: | AC99: 4.187527601 | AD99: 4.766300087 | AF99: 0 | AI99: 1.423107127 | AJ99: 1.095362901 | AK99: 2.120162141 | AL99: 0.8410722805 | AM99: 0.8319996194 | AN99: 0.8220895445 | AO99: 8.888098029e-06 | AP99: 1.268492828e-05 | AQ99: =IFERROR(SUMXMY2(AC$98:AD$98,AC99:AD99),"") -> 2.952826565e-05 | AR99: =IFERROR(SUMXMY2(AC$99:AD$99,AC99:AD99),"") -> 0
M100: 1 | N100: Click on the edge of the map | AC100: 4.187607486 | AD100: 4.762578202 | AF100: 0 | AI100: 1.422210279 | AJ100: 1.095879152 | AK100: 2.127866159 | AL100: 0.8353686412 | AM100: 0.8253001722 | AN100: 0.8154206864 | AO100: 1.189307671e-05 | AP100: 5.871275656e-08 | AQ100: 2.953559595e-06 | AR100: =IFERROR(SUMXMY2(AC$99:AD$99,AC100:AD100),"") -> 1.385880968e-05 | AS100: =IFERROR(SUMXMY2(AC$100:AD$100,AC100:AD100),"") -> 0
N101: to highlight it | AC101: 4.189719891 | AD101: 4.76096119 | AF101: 0 | AI101: 1.426753036 | AJ101: 1.100461863 | AK101: 2.127054944 | AL101: 0.8307526499 | AM101: 0.8217498115 | AN101: 0.8119232713 | AO101: 3.730260948e-05 | AP101: 6.950902718e-06 | AQ101: 5.150120577e-06 | AR101: 3.330995605e-05 | AS101: =IFERROR(SUMXMY2(AC$100:AD$100,AC101:AD101),"") -> 7.076983014e-06 | AT101: =IFERROR(SUMXMY2(AC$101:AD$101,AC101:AD101),"") -> 0
AC102: =IF($AF102=1,AI102,"") ->  | AV102: =IFERROR(IF(OR($AF102=0,AV$89=0),"",SQRT(($AI$101-$AI102)^2+($AJ$101-$AJ102)^2)),"") -> 
M103: 2 | N103: Select 'copy' from the above menu | AV103: =IFERROR(IF(OR($AF103=0,AV$89=0),"",SQRT(($AI$101-$AI103)^2+($AJ$101-$AJ103)^2)),"") ->  | AW103: =IFERROR(IF(OR($AF103=0,AW$89=0),"",SQRT(($AI$102-$AI103)^2+($AJ$102-$AJ103)^2)),"") -> 
AW104: =IFERROR(IF(OR($AF104=0,AW$89=0),"",SQRT(($AI$102-$AI104)^2+($AJ$102-$AJ104)^2)),"") ->  | AX104: =IFERROR(IF(OR($AF104=0,AX$89=0),"",SQRT(($AI$103-$AI104)^2+($AJ$103-$AJ104)^2)),"") -> 
M105: 3 | N105: Go to your Word or P/Point document | AX105: =IFERROR(IF(OR($AF105=0,AX$89=0),"",SQRT(($AI$103-$AI105)^2+($AJ$103-$AJ105)^2)),"") ->  | AY105: =IFERROR(IF(OR($AF105=0,AY$89=0),"",SQRT(($AI$104-$AI105)^2+($AJ$104-$AJ105)^2)),"") -> 
AY106: =IFERROR(IF(OR($AF106=0,AY$89=0),"",SQRT(($AI$104-$AI106)^2+($AJ$104-$AJ106)^2)),"") ->  | AZ106: =IFERROR(IF(OR($AF106=0,AZ$89=0),"",SQRT(($AI$105-$AI106)^2+($AJ$105-$AJ106)^2)),"") -> 
M107: 4 | N107: Select 'paste', then 'paste special' | AZ107: =IFERROR(IF(OR($AF107=0,AZ$89=0),"",SQRT(($AI$105-$AI107)^2+($AJ$105-$AJ107)^2)),"") ->  | BA107: =IFERROR(IF(OR($AF107=0,BA$89=0),"",SQRT(($AI$106-$AI107)^2+($AJ$106-$AJ107)^2)),"") -> 
N108: and choose 'picture'. | BA108: =IFERROR(IF(OR($AF108=0,BA$89=0),"",SQRT(($AI$106-$AI108)^2+($AJ$106-$AJ108)^2)),"") ->  | BB108: =IFERROR(IF(OR($AF108=0,BB$89=0),"",SQRT(($AI$107-$AI108)^2+($AJ$107-$AJ108)^2)),"") -> 
BB109: =IFERROR(IF(OR($AF109=0,BB$89=0),"",SQRT(($AI$107-$AI109)^2+($AJ$107-$AJ109)^2)),"") ->  | BC109: =IFERROR(IF(OR($AF109=0,BC$89=0),"",SQRT(($AI$108-$AI109)^2+($AJ$108-$AJ109)^2)),"") -> 
BC110: =IFERROR(IF(OR($AF110=0,BC$89=0),"",SQRT(($AI$108-$AI110)^2+($AJ$108-$AJ110)^2)),"") ->  | BD110: =IFERROR(IF(OR($AF110=0,BD$89=0),"",SQRT(($AI$109-$AI110)^2+($AJ$109-$AJ110)^2)),"") -> 
Z111: =+IF($AF111=1,(AC111+$AD$117)*$AD$119,"") ->  | BD111: =IFERROR(IF(OR($AF111=0,BD$89=0),"",SQRT(($AI$109-$AI111)^2+($AJ$109-$AJ111)^2)),"") ->  | BE111: =IFERROR(IF(OR($AF111=0,BE$89=0),"",SQRT(($AI$110-$AI111)^2+($AJ$110-$AJ111)^2)),"") -> 
BE112: =IFERROR(IF(OR($AF112=0,BE$89=0),"",SQRT(($AI$110-$AI112)^2+($AJ$110-$AJ112)^2)),"") ->  | BF112: =IFERROR(IF(OR($AF112=0,BF$89=0),"",SQRT(($AI$111-$AI112)^2+($AJ$111-$AJ112)^2)),"") -> 
Z113: =+IF($AF113=1,(AC113+$AD$117)*$AD$119,"") ->  | AA113: =+IF($AF113=1,(AD113+$AD$117)*$AD$119,"") ->  | AC113: =IF($AF113=1,AI113,"") ->  | AD113: =IF($AF113=1,AJ113,"") ->  | BF113: =IFERROR(IF(OR($AF113=0,BF$89=0),"",SQRT(($AI$111-$AI113)^2+($AJ$111-$AJ113)^2)),"") ->  | BG113: =IFERROR(IF(OR($AF113=0,BG$89=0),"",SQRT(($AI$112-$AI113)^2+($AJ$112-$AJ113)^2)),"") -> 
Z114: Min | AA114: =MIN(Z90:AA112) -> 2.095790429 | AC114: Min | AD114: =MIN(AC90:AD112) -> 3.003772403 | AK114: =IF(AK89=1,SUM(AK90:AK113),"") -> 25.34547454 | AL114: =IF(AL89=1,SUM(AL90:AL113),"") -> 5.322985093 | AM114: 4.957090257 | AN114: 4.897673974 | AO114: 9.179200144e-05 | AP114: 2.334012657e-05
Z115: Max | AA115: =MAX(Z90:AA112) -> 8 | AC115: Max | AD115: =MAX(AC90:AD112) -> 5.82094796
AA116: =+AA115-AA114 -> 5.904209571 | AD116: =+AD115-AD114 -> 2.817175558
AC117: Down | AD117: =1-AD114 -> -2.003772403
AC118: Top | AD118: =+AD117+AD115 -> 3.817175558
AC119: To 9 | AD119: =8/AD118 -> 2.095790429
AH148: =+AH90 -> Coke | AK148: =IFERROR(AK90^2,"") -> 0 | AL148: 0 | AM148: 0 | AN148: 0 | AO148: 0 | AP148: 0 | AQ148: 0 | AR148: 0 | AS148: 0 | AT148: 0 | AU148: 0
AH149: Pepsi | AK149: =IFERROR(AK91^2,"") -> 0 | AL149: 0 | AM149: 0 | AN149: 0 | AO149: 0 | AP149: 0 | AQ149: 0 | AR149: 0 | AS149: 0 | AT149: 0 | AU149: 0
AH150: Sprite | AK150: =IFERROR(AK92^2,"") -> 0 | AL150: 0 | AM150: 0 | AN150: 0 | AO150: 0 | AP150: 0 | AQ150: 0 | AR150: 0 | AS150: 0 | AT150: 0 | AU150: 0
AH151: Diet Coke | AK151: =IFERROR(AK93^2,"") -> 12.37896785 | AL151: 0 | AM151: 0 | AN151: 0 | AO151: 0 | AP151: 0 | AQ151: 0 | AR151: 0 | AS151: 0 | AT151: 0 | AU151: 0
AH152: Pepsi Max | AK152: =IFERROR(AK94^2,"") -> 20.53683178 | AL152: 0.02250909503 | AM152: 0 | AN152: 0 | AO152: 0 | AP152: 0 | AQ152: 0 | AR152: 0 | AS152: 0 | AT152: 0 | AU152: 0
AH153: PM2 | AK153: =IFERROR(AK95^2,"") -> 20.5460383 | AL153: 0.02430897065 | AM153: 1.130363769e-08 | AN153: 0 | AO153: 0 | AP153: 0 | AQ153: 0 | AR153: 0 | AS153: 0 | AT153: 0 | AU153: 0
AK154: =IFERROR(AK96^2,"") -> 4.530599506 | AL154: 0.7080381277 | AM154: 0.6890605644 | AN154: 0.6726450952 | AO154: 0 | AP154: 0 | AQ154: 0 | AR154: 0 | AS154: 0 | AT154: 0 | AU154: 0
AK155: =IFERROR(AK97^2,"") -> 4.524808885 | AL155: 0.697967178 | AM155: 0.6815307405 | AN155: 0.6653195908 | AO155: 1.469460555e-10 | AP155: 0 | AQ155: 0 | AR155: 0 | AS155: 0 | AT155: 0 | AU155: 0
AK156: =IFERROR(AK98^2,"") -> 4.544585368 | AL156: 0.6938116157 | AM156: 0.6761589763 | AN156: 0.6600259081 | AO156: 4.659591267e-10 | AP156: 1.329027408e-11 | AQ156: 0 | AR156: 0 | AS156: 0 | AT156: 0 | AU156: 0
AK157: =IFERROR(AK99^2,"") -> 4.495087504 | AL157: 0.707402581 | AM157: 0.6922233666 | AN157: 0.6758312191 | AO157: 7.899828657e-11 | AP157: 1.609074055e-10 | AQ157: 8.719184726e-10 | AR157: 0 | AS157: 0 | AT157: 0 | AU157: 0
AK158: =IFERROR(AK100^2,"") -> 4.52781439 | AL158: 0.6978407666 | AM158: 0.6811203743 | AN158: 0.6649108958 | AO158: 1.414452735e-10 | AP158: 3.447187783e-15 | AQ158: 8.723514279e-12 | AR158: 1.920666058e-10 | AS158: 0 | AT158: 0 | AU158: 0
AK159: =IFERROR(AK101^2,"") -> 4.524362735 | AL159: 0.6901499654 | AM159: 0.6752727526 | AN159: 0.6592193984 | AO159: 1.391484674e-09 | AP159: 4.831504859e-11 | AQ159: 2.652374195e-11 | AR159: 1.109553172e-09 | AS159: 5.008368859e-11 | AT159: 0 | AU159: 0
AH172: =SUM(AK172:AU172) -> 92.94444352 | AK172: =SUM(AK148:AK171) -> 80.60909633 | AL172: =SUM(AL148:AL171) -> 4.2420283 | AM172: 4.095366786 | AN172: 3.997952108 | AO172: 2.224833416e-09 | AP172: 2.225161754e-10 | AQ172: 9.071657288e-10 | AR172: 1.301619778e-09 | AS172: 5.008368859e-11 | AT172: 0 | AU172: 0
AH175: =+AH148 -> Coke | AK175: =IFERROR((AK90-AI63)^2,"") -> 0 | AL175: =IFERROR((AL90-AJ63)^2,"") -> 0 | AM175: =IFERROR((AM90-AK63)^2,"") -> 0 | AN175: =IFERROR((AN90-AL63)^2,"") -> 0 | AO175: =IFERROR((AO90-AM63)^2,"") -> 0 | AP175: =IFERROR((AP90-AN63)^2,"") -> 0 | AQ175: =IFERROR((AQ90-AO63)^2,"") -> 0 | AR175: =IFERROR((AR90-AP63)^2,"") -> 0 | AS175: =IFERROR((AS90-AQ63)^2,"") -> 0 | AT175: =IFERROR((AT90-AR63)^2,"") -> 0 | AU175: =IFERROR((AU90-AS63)^2,"") -> 0
AH176: Pepsi | AK176: =IFERROR((AK91-AI64)^2,"") -> 1 | AL176: 0 | AM176: 0 | AN176: 0 | AO176: 0 | AP176: 0 | AQ176: 0 | AR176: 0 | AS176: 0 | AT176: 0 | AU176: 0
AH177: Sprite | AK177: 81 | AL177: 49 | AM177: 0 | AN177: 0 | AO177: 0 | AP177: 0 | AQ177: 0 | AR177: 0 | AS177: 0 | AT177: 0 | AU177: 0
AH178: Diet Coke | AK178: 0.2687134087 | AL178: 25 | AM178: 25 | AN178: 0 | AO178: 0 | AP178: 0 | AQ178: 0 | AR178: 0 | AS178: 0 | AT178: 0 | AU178: 0
AH179: Pepsi Max | AK179: 0.2827667124 | AL179: 5.522357527 | AM179: 36 | AN179: 1.5625 | AO179: 0 | AP179: 0 | AQ179: 0 | AR179: 0 | AS179: 0 | AT179: 0 | AU179: 0
AH180: PM2 | AK180: 0.2838479199 | AL180: 5.494742254 | AM180: 35.99872419 | AN180: 1.69 | AO180: 1 | AP180: 0 | AQ180: 0 | AR180: 0 | AS180: 0 | AT180: 0 | AU180: 0
AK181: 4.530599506 | AL181: 0.7080381277 | AM181: 0.6890605644 | AN181: 0.6726450952 | AO181: 0 | AP181: 0 | AQ181: 0 | AR181: 0 | AS181: 0 | AT181: 0 | AU181: 0
AK182: 4.524808885 | AL182: 0.697967178 | AM182: 0.6815307405 | AN182: 0.6653195908 | AO182: 1.469460555e-10 | AP182: 0 | AQ182: 0 | AR182: 0 | AS182: 0 | AT182: 0 | AU182: 0
AK183: 4.544585368 | AL183: 0.6938116157 | AM183: 0.6761589763 | AN183: 0.6600259081 | AO183: 4.659591267e-10 | AP183: 1.329027408e-11 | AQ183: 0 | AR183: 0 | AS183: 0 | AT183: 0 | AU183: 0
AK184: 4.495087504 | AL184: 0.707402581 | AM184: 0.6922233666 | AN184: 0.6758312191 | AO184: 7.899828657e-11 | AP184: 1.609074055e-10 | AQ184: 8.719184726e-10 | AR184: 0 | AS184: 0 | AT184: 0 | AU184: 0
AK185: 4.52781439 | AL185: 0.6978407666 | AM185: 0.6811203743 | AN185: 0.6649108958 | AO185: 1.414452735e-10 | AP185: 3.447187783e-15 | AQ185: 8.723514279e-12 | AR185: 1.920666058e-10 | AS185: 0 | AT185: 0 | AU185: 0
AK186: 4.524362735 | AL186: 0.6901499654 | AM186: 0.6752727526 | AN186: 0.6592193984 | AO186: 1.391484674e-09 | AP186: 4.831504859e-11 | AQ186: 2.652374195e-11 | AR186: 1.109553172e-09 | AS186: 5.008368859e-11 | AT186: 0 | AU186: 0
AH199: =SUM(AK199:BH199) -> 308.5394395 | AK199: =SUM(AK175:AK198) -> 109.9825864 | AL199: =SUM(AL175:AL198) -> 89.21231001 | AM199: 101.094091 | AN199: 7.250452108 | AO199: 1.000000002 | AP199: 2.225161754e-10 | AQ199: 9.071657288e-10 | AR199: 1.301619778e-09 | AS199: 5.008368859e-11 | AT199: 0 | AU199: 0
AH202: =SQRT(AH199/AH172) -> 1.821980092 | AK202: 1 | AL202: =+AH175 -> Coke | AM202: =+Z90 -> 2.095790429 | AN202: =+AA90 -> 5.480021118
AK203: 2 | AL203: =+AH176 -> Pepsi | AM203: =+Z91 -> 2.385280518 | AN203: 5.884092166
AK204: 3 | AL204: Sprite | AM204: =+Z92 -> 6.68072489 | AN204: 8
AK205: 4 | AL205: Diet Coke | AM205: =+Z93 -> 5.661767774 | AN205: 4.203209226
AK206: 5 | AL206: Pepsi Max | AM206: =+Z94 -> 4.906109674 | AN206: 3.90662094
AK207: 6 | AL207: PM2 | AM207: =+Z95 -> 4.886109055 | AN207: 3.91480399
AK208: 7 | AM208: =+Z96 -> 
AK209: 8 | AM209: =+Z97 -> 
AK210: 9 | AM210: =+Z98 -> 
AK211: 10 | AM211: =+Z99 -> 
AK212: 11 | AM212: =+Z100 -> 
AK213: 12 | AM213: =+Z101 -> 
AN214: =+AA102 -> 
AN215: =+AA103 -> 
AN216: =+AA104 -> 
AN217: =+AA105 -> 
AN218: =+AA106 -> 
AN219: =+AA107 -> 
AN220: =+AA108 -> 
AN221: =+AA109 -> 
AN222: =+AA110 -> 
AN223: =+AA111 -> 
AN224: =+AA112 -> 
AN225: =+AA113 -> 
